Workbook

Sheet Pengeluaran
B1: Anggaran Acara untuk [Nama Acara] | H1: PENGELUARAN
B3: TOTAL PENGELUARAN | G3: Estimasi | H3: Aktual
G4: =SUM(C11,C19,C25,C32,G11,G19,G24) -> Rp882.00 | H4: =SUM(D11,D19,D25,D32,H11,H19,H24) -> Rp333.00
B6: Lokasi | C6: Estimasi | D6: Aktual | F6: Makanan Ringan | G6: Estimasi | H6: Aktual
B7: Biaya ruangan dan aula | C7: Rp500.00 | F7: Makanan
B8: Staf lokasi | F8: Minuman | G8: Rp20.00
B9: Peralatan | F9: Taplak | H9: Rp20.00
B10: Meja dan kursi | F10: Staf dan tip
B11: Total | C11: =SUBTOTAL(109,Tabel1[Estimasi]) -> Rp500.00 | D11: =SUBTOTAL(109,Tabel1[Aktual]) -> Rp0.00 | F11: Total | G11: =SUBTOTAL(109,Tabel3[Estimasi]) -> Rp20.00 | H11: =SUBTOTAL(109,Tabel3[Aktual]) -> Rp20.00
B13: Dekorasi | C13: Estimasi | D13: Aktual | F13: Program | G13: Estimasi | H13: Aktual
B14: Bunga | C14: Rp200.00 | D14: Rp300.00 | F14: Hiburan
B15: Lilin | F15: Pembicara | G15: Rp30.00
B16: Lampu | F16: Perjalanan
B17: Balon | F17: Hotel
B18: Perlengkapan kertas | F18: Lainnya
B19: Total | C19: =SUBTOTAL(109,Tabel4[Estimasi]) -> Rp200.00 | D19: =SUBTOTAL(109,Tabel4[Aktual]) -> Rp300.00 | F19: Total | G19: =SUBTOTAL(109,Tabel5[Estimasi]) -> Rp30.00 | H19: =SUBTOTAL(109,Tabel5[Aktual]) -> Rp0.00
B21: Publikasi | C21: Estimasi | D21: Aktual | F21: Hadiah | G21: Estimasi | H21: Aktual
B22: Karya grafis | F22: Pita/Plakat/Piala
B23: Fotokopi/Percetakan | C23: Rp20.00 | F23: Hadiah | G23: Rp100.00
B24: Ongkos kirim | F24: Total | G24: =SUBTOTAL(109,Tabel7[Estimasi]) -> Rp100.00 | H24: =SUBTOTAL(109,Tabel7[Aktual]) -> Rp0.00
B25: Total | C25: =SUBTOTAL(109,Tabel6[Estimasi]) -> Rp20.00 | D25: =SUBTOTAL(109,Tabel6[Aktual]) -> Rp0.00
B27: Lain-lain | C27: Estimasi | D27: Aktual
B28: Telepon | D28: Rp13.00
B29: Transportasi | C29: Rp12.00
B30: Perlengkapan alat tulis
B31: Layanan faks
B32: Total | C32: =SUBTOTAL(109,Tabel8[Estimasi]) -> Rp12.00 | D32: =SUBTOTAL(109,Tabel8[Aktual]) -> Rp13.00

Sheet Pendapatan
B1: Anggaran Acara untuk [Nama Acara] | G1: PENDAPATAN
B3: TOTAL PENDAPATAN | F3: Estimasi | G3: Aktual
F4: =SUM(F11, F18, F25, F33) -> Rp1,936.00 | G4: =SUM(G11,G18,G25, G33) -> Rp1,831.00
B6: TIKET MASUK
B7: Jumlah Estimasi | C7: Jumlah Aktual | D7: Tipe | E7: Harga | F7: Estimasi Pendapatan | G7: Pendapatan Aktual
B8: 300 | C8: 278 | D8: Dewasa @ | E8: Rp5.00 | F8: =B8*E8 -> Rp1,500.00 | G8: =C8*E8 -> Rp1,390.00
B9: 197 | C9: 195 | D9: Anak-anak @ | E9: Rp2.00 | F9: =B9*E9 -> Rp394.00 | G9: =C9*E9 -> Rp390.00
B10: 42 | C10: 51 | D10: Lainnya @ | E10: Rp1.00 | F10: =B10*E10 -> Rp42.00 | G10: =C10*E10 -> Rp51.00
B11: Total | F11: =SUBTOTAL(109,Tabel9[Estimasi Pendapatan]) -> Rp1,936.00 | G11: =SUBTOTAL(109,Tabel9[Pendapatan Aktual]) -> Rp1,831.00
B13: IKLAN DALAM PROGRAM
B14: Jumlah Estimasi | C14: Jumlah Aktual | D14: Tipe | E14: Harga | F14: Estimasi Pendapatan | G14: Pendapatan Aktual
B15: 12 | D15: Sampul @ | F15: =B15*E15 -> Rp0.00 | G15: =C15*E15 -> Rp0.00
C16: 158 | D16: Setengah halaman @ | F16: =B16*E16 -> Rp0.00 | G16: =C16*E16 -> Rp0.00
B17: 4 | D17: Seperempat halaman @ | F17: =B17*E17 -> Rp0.00 | G17: =C17*E17 -> Rp0.00
B18: Total | F18: =SUBTOTAL(109,Tabel10[Estimasi Pendapatan]) -> Rp0.00 | G18: =SUBTOTAL(109,Tabel10[Pendapatan Aktual]) -> Rp0.00
B20: PESERTA PAMERAN/VENDOR
B21: Jumlah Estimasi | C21: Jumlah Aktual | D21: Tipe | E21: Harga | F21: Estimasi Pendapatan | G21: Pendapatan Aktual
B22: 23 | D22: Stan besar @ | F22: =B22*E22 -> Rp0.00 | G22: =C22*E22 -> Rp0.00
B23: 354 | D23: Stan sedang @ | F23: =B23*E23 -> Rp0.00 | G23: =C23*E23 -> Rp0.00
B24: 56 | D24: Stan kecil @ | F24: =B24*E24 -> Rp0.00 | G24: =C24*E24 -> Rp0.00
B25: Total | F25: =SUBTOTAL(109,Tabel11[Estimasi Pendapatan]) -> Rp0.00 | G25: =SUBTOTAL(109,Tabel11[Pendapatan Aktual]) -> Rp0.00
B27: PENJUALAN ITEM
B28: Jumlah Estimasi | C28: Jumlah Aktual | D28: Tipe | E28: Harga | F28: Estimasi Pendapatan | G28: Pendapatan Aktual
D29: Item @ | F29: =B29*E29 -> Rp0.00 | G29: =C29*E29 -> Rp0.00
B30: 123 | D30: Item @ | F30: =B30*E30 -> Rp0.00 | G30: =C30*E30 -> Rp0.00
D31: Item @ | F31: =B31*E31 -> Rp0.00 | G31: =C31*E31 -> Rp0.00
B32: 13 | D32: Item @ | F32: =B32*E32 -> Rp0.00 | G32: =C32*E32 -> Rp0.00
B33: Total | F33: =SUBTOTAL(109,Tabel12[Estimasi Pendapatan]) -> Rp0.00 | G33: =SUBTOTAL(109,Tabel12[Pendapatan Aktual]) -> Rp0.00

Sheet Laporan Laba - Rugi
B1: Anggaran Acara untuk [Nama Acara] | G1: LABA
G2: Ringkasan Rugi
C5: Estimasi | D5: Aktual
B6: Total pendapatan | C6: =Pendapatan!F4 -> Rp1,936.00 | D6: =Pendapatan!G4 -> Rp1,831.00
B7: Total pengeluaran | C7: =Pengeluaran!G4 -> Rp882.00 | D7: =Pengeluaran!H4 -> Rp333.00
B9: Total laba (atau rugi) | C9: =C6-C7 -> Rp1,054.00 | D9: =D6-D7 -> Rp1,498.00
